[Event "French Top 16-A 2024"]
[Site "Chartres"]
[Date "2024.06.02"]
[Round "4.7"]
[White "Pelletier, Yannick"]
[Black "Milliet, Sophie"]
[Result "*"]
[ECO "E98"]
[WhiteElo "2515"]
[BlackElo "2385"]
[Annotator "RC"]
[PlyCount "24"]
[EventDate "2024.06.01"]
[EventType "team-tourn"]
[EventCountry "FRA"]
[SourceTitle "playchess.com"]
[Source "ChessBase"]
[SourceQuality "1"]
[TimeControl "40/5400+30:1800+30"]

1. d4 {[%emt 1:31:00]} Nf6 {[%emt 0:00:14]} 2. c4 {[%emt 0:00:20]} g6 {[%emt 0:00:15]} 3. Nc3 {[%emt 0:00:15]} Bg7 {[%emt 0:00:08]} 4. e4 {[%emt 0:00:15]} d6 {[%emt 0:00:06]} 5. Be2 {[%emt 0:00:57]} O-O {[%emt 0:00:09]} 6. Nf3 {[%emt 0:00:35]} e5 {[%emt 0:01:03]} 7. O-O {[%emt 0:01:10]} Nc6 {[%emt 0:00:27]} 8. d5 {[%emt 0:00:09]} Ne7 {[%emt 0:00:05]} 9. Ne1 {[%emt 0:00:14]} Ne8 {[%emt 0:03:57]} 10. Be3 {[%emt 0:01:11]} f5 {[%emt 0:00:12]} 11. f3 {[%emt 1:30:43]} Kh8 {[%emt 0:03:26]} 12. Nd3 {[%emt 0:00:38]} Ng8 {[%emt 0:00:21]} *

[Event "French Top 16-A 2024"]
[Site "Chartres"]
[Date "2024.06.02"]
[Round "4.7"]
[White "Loiseau, Quentin"]
[Black "Degraeve, Jean-Marc"]
[Result "1/2-1/2"]
[ECO "E98"]
[WhiteElo "2411"]
[BlackElo "2463"]
[Annotator "TA"]
[PlyCount "65"]
[EventDate "2024.06.01"]
[EventType "team-tourn"]
[EventCountry "FRA"]
[SourceTitle "playchess.com"]
[Source "ChessBase"]
[SourceQuality "1"]
[TimeControl "40/5400+30:1800+30"]

{[%evp 21,65,62,67,70,100,66,69,70,70,44,37,16,68,54,53,56,62,48,56,34,64,0,0,0,0,0,0,0,12,10,14,0,20,0,0,0,0,0,0,0,0,0,0,0,0,0]} 1. d4 {[%emt 0:00:11]} Nf6 {[%emt 0:00:14]} 2. c4 {[%emt 0:00:20]} g6 {[%emt 0:00:15]} 3. Nc3 {[%emt 0:00:15]} Bg7 {[%emt 0:00:08]} 4. e4 {[%emt 0:00:15]} d6 {[%emt 0:00:06]} 5. Be2 {[%emt 0:00:57]} O-O {[%emt 0:00:09]} 6. Nf3 {[%emt 0:00:35]} e5 {[%emt 0:01:03]} 7. O-O {[%emt 0:01:10]} Nc6 {[%emt 0:00:27][%cal Bb8c6,Bc6e7,Be7g8,Bg8h6,Bh6f7][%mdl 32]} 8. d5 {[%emt 0:00:09]} Ne7 {[%emt 0:00:05]} 9. Ne1 {[%emt 0:00:14]} Ne8 {[%emt 0:03:57]} 10. Be3 {[%emt 0:01:11]} f5 {[%emt 0:00:12]} 11. f3 {[%emt 0:00:05]} Kh8 {[%emt 0:03:26]} 12. Nd3 {[%emt 0:00:38]} Ng8 {[%emt 0:00:21]} 13. c5 {[%emt 0:30:24]} Bh6 {[%emt 0:03:57]} 14. Bxh6 {[%emt 0:02:03] White is slightly better.} Nxh6 {[%emt 0:00:02]} 15. f4 {[%emt 0:00:12]} exf4 {[%emt 0:01:27]} 16. cxd6 {[%emt 0:08:34]} (16. Nxf4 dxc5 17. e5 g5 $16) 16... cxd6 {[%emt 0:04:37]} (16... fxe4 $11 17. dxc7 (17. Nxe4 Nxd6 18. Ndc5 Qe7 $11) 17... Qxc7 18. Nxe4 Bf5 19. Rxf4 Nf6 20. Nxf6 Bxd3) 17. Nxf4 $14 {[%emt 0:01:07]} Qb6+ {[%emt 0:02:36]} 18. Kh1 {[%emt 0:01:56] Qd2 is the strong threat. Active counter play!} Ng7 {[%emt 0:00:53]} 19. Qd2 {[%emt 0:07:11][%cal Of4g6]} Nf7 $1 {[%emt 0:00:21]} 20. exf5 {[%emt 0:18:27]} Bxf5 {[%emt 0:01:55] [#]} 21. Ne6 {[%emt 0:01:24]} Nxe6 $11 {[%emt 0:01:33] The position is equal.} 22. dxe6 {[%emt 0:01:40]} Bxe6 {[%emt 0:00:05]} 23. Rf6 {[%emt 0:00:24]} Rae8 {[%emt 0:09:10]} 24. Raf1 {[%emt 0:08:31] aiming for Bb5.} Kg7 {[%emt 0:03:02]} 25. Ne4 {[%emt 0:08:14][%mdl 1024] White has compensation.} d5 {[%emt 0:27:06] Wards off b3} 26. Ng3 {[%emt 0:01:08] [#] Threatens to win with Qf4.} (26. Qc3 $5 d4 $8 27. Qg3 $16) 26... Qd6 {[%emt 0:07:29]} 27. Bg4 {[%emt 0:02:53]} Qe5 {[%emt 0:00:41]} 28. Qf2 {[%emt 0:01:42] Strongly threatening Bxe6.} Bxg4 {[%emt 0:02:14]} 29. Rxf7+ {[%emt 0:00:03]} Rxf7 {[%emt 0:00:11]} 30. Qxf7+ {[%emt 0:00:01]} Kh6 {[%emt 0:03:05]} 31. h3 {[%emt 0:00:51]} Bxh3 {[%emt 0:02:29]} 32. gxh3 {[%emt 0:02:30] Black must now prevent Kg2.} Qxg3 {[%emt 0:00:05]} 33. Qxe8 {[%emt 0:00:02] Weighted Error Value: White=0.09 (flawless) /Black=0.04 (flawless) .  Mistake:       	White=1     	Black=1      Inaccurate:     	White=1     	Black=2      OK:         	White=8     	Black=8      Best:        	White=4     	Black=1      Strong:       	---       	Black=1} 1/2-1/2

[Event "French Top 16-A 2024"]
[Site "Chartres"]
[Date "2024.06.02"]
[Round "4.7"]
[White "Pucher, Sebastien"]
[Black "Malassagne, Isabelle"]
[Result "0-1"]
[ECO "A34"]
[WhiteElo "2196"]
[BlackElo "2090"]
[Annotator "RC"]
[PlyCount "70"]
[EventDate "2024.06.01"]
[EventType "team-tourn"]
[EventCountry "FRA"]
[SourceTitle "playchess.com"]
[Source "ChessBase"]
[SourceQuality "1"]
[TimeControl "40/5400+30:1800+30"]

1. Nf3 {[%emt 0:00:17]} Nf6 {[%emt 0:00:04]} 2. c4 {[%emt 0:00:36]} c5 {[%emt 0:00:04]} 3. Nc3 {[%emt 0:01:04]} d5 {[%emt 0:00:03]} 4. cxd5 {[%emt 0:00:10]} Nxd5 {[%emt 0:00:02]} 5. e3 {[%emt 0:00:12]} Nc6 {[%emt 0:05:45]} 6. Bb5 {[%emt 0:06:32]} e6 {[%emt 0:11:38]} 7. Ne5 {[%emt 0:07:34]} Qc7 {[%emt 0:10:13]} 8. Nxc6 {[%emt 0:06:57]} bxc6 {[%emt 0:00:24]} 9. Bc4 {[%emt 0:03:22]} Nb6 {[%emt 0:08:03]} 10. Be2 {[%emt 0:02:58]} Be7 {[%emt 0:02:54]} 11. O-O {[%emt 0:04:54]} O-O {[%emt 0:00:48]} 12. Qc2 {[%emt 0:05:06]} f5 {[%emt 0:04:00]} 13. b3 {[%emt 0:15:41]} Bd6 {[%emt 0:02:16]} 14. h3 {[%emt 0:01:28]} e5 {[%emt 0:11:08]} 15. Ba3 {[%emt 0:02:43]} Qe7 {[%emt 0:04:28]} 16. d3 {[%emt 0:04:57]} Rf6 {[%emt 0:07:08]} 17. Rfe1 {[%emt 0:09:23]} Rg6 {[%emt 0:01:18]} 18. Bf1 {[%emt 0:01:28]} Qg5 {[%emt 0:13:07]} 19. f3 {[%emt 0:14:25]} Ba6 {[%emt 0:02:31]} 20. Qf2 {[%emt 0:02:34]} Rd8 {[%emt 0:02:06]} 21. e4 {[%emt 0:02:55]} f4 {[%emt 0:00:04]} 22. Red1 {[%emt 0:02:07]} Bc8 {[%emt 0:06:28]} 23. Kh1 {[%emt 0:00:09]} Qe7 {[%emt 0:02:38]} 24. Rac1 {[%emt 0:00:28]} Ba6 {[%emt 0:00:39]} 25. Rc2 {[%emt 0:01:44]} c4 {[%emt 0:01:22]} 26. Bxd6 {[%emt 0:02:02]} Rgxd6 {[%emt 0:00:02]} 27. bxc4 {[%emt 0:00:18]} Nxc4 {[%emt 0:02:36]} 28. dxc4 {[%emt 0:01:19]} Rxd1 {[%emt 0:00:02]} 29. Nxd1 {[%emt 0:00:08]} Rxd1 {[%emt 0:00:01]} 30. Kh2 {[%emt 0:00:14]} Qd8 {[%emt 0:01:58]} 31. Qxa7 {[%emt 0:01:24]} Rxf1 {[%emt 0:00:09]} 32. Qxa6 {[%emt 0:00:44]} h5 {[%emt 0:01:51]} 33. Qxc6 {[%emt 0:00:35]} Qh4 {[%emt 0:00:25]} 34. Qc8+ {[%emt 0:00:29]} Kh7 {[%emt 0:00:01]} 35. Qf5+ {[%emt 0:00:30]} Kh6 {[%emt 0:00:01]} 0-1

[Event "French Top 16-A 2024"]
[Site "Chartres"]
[Date "2024.06.02"]
[Round "4.8"]
[White "Pelletier, Yannick"]
[Black "Milliet, Sophie"]
[Result "1/2-1/2"]
[ECO "A01"]
[WhiteElo "2515"]
[BlackElo "2385"]
[Annotator "TA"]
[PlyCount "115"]
[EventDate "2024.06.01"]
[EventType "team-tourn"]
[EventCountry "FRA"]
[SourceTitle "playchess.com"]
[Source "ChessBase"]
[SourceQuality "1"]
[TimeControl "40/5400+30:1800+30"]

{[%evp 10,115,6,2,22,20,29,23,32,10,31,16,88,23,34,30,32,45,31,18,75,68,64,68,54,55,62,62,57,60,55,49,61,56,58,60,73,32,61,64,62,56,63,56,56,56,64,48,55,44,44,44,50,0,43,0,50,42,42,42,60,57,60,50,57,4,16,16,16,16,16,16,16,16,22,10,22,24,24,6,22,6,17,17,17,7,4,0,14,0,0,0,0,0,0,0,0,0,0,0,0,0,18,0,0,0,0,0]} 1. b3 {[%emt 0:01:05]} e5 {[%emt 0:00:26]} 2. Bb2 {[%emt 0:00:09]} Nc6 {[%emt 0:00:19]} 3. e3 {[%emt 0:00:26]} Nf6 {[%emt 0:02:53]} 4. Nf3 {[%emt 0:01:18]} e4 {[%emt 0:00:27]} 5. Nd4 {[%emt 0:00:37]} Nxd4 {[%emt 0:01:45]} 6. Bxd4 {[%emt 0:00:18]} d5 {[%emt 0:00:47]} 7. c4 {[%emt 0:11:43]} dxc4 {[%emt 0:08:04]} 8. Bxc4 {[%emt 0:03:49]} Bf5 {[%emt 0:04:03] White has an edge.} 9. Nc3 {[%emt 0:12:49]} Bd6 {[%emt 0:09:47]} 10. f3 {[%emt 0:25:58]} Nh5 {[%emt 0:14:48] [#]} (10... O-O $11 {keeps the balance.}) 11. Nxe4 {[%emt 0:00:42]} (11. O-O $1 $16 c5 12. Bxc5 (12. fxe4 Bg6 $11) 12... Bxc5 13. Bxf7+ Kxf7 14. fxe4) 11... Bxe4 $11 {[%emt 0:01:11]} 12. fxe4 {[%emt 0:00:06]} Qh4+ {[%emt 0:00:07]} 13. Ke2 {[%emt 0:00:18]} Qxe4 {[%emt 0:02:55] White must now prevent ...Nf4+.} 14. Kf2 {[%emt 0:04:24]} Qg6 {[%emt 0:10:21]} (14... Nf6 $1 $11) 15. Qf3 $16 {[%emt 0:09:15]} O-O {[%emt 0:00:48]} 16. g4 {[%emt 0:09:00] White is more active.} Nf6 {[%emt 0:00:03]} 17. Bxf6 {[%emt 0:00:07]} ({And not} 17. Qxb7 Be5 (17... Nxg4+ 18. Ke2 $17) (17... Qxg4 18. Bxf6 Qf5+ 19. Qf3 $16) 18. Bxe5 Nxg4+ (18... Qxg4 $2 19. Bxf6 Qf5+ 20. Qf3 $18) 19. Ke1 Nxe5 $17) 17... Qxf6 {[%emt 0:00:12]} 18. Qxf6 {[%emt 0:00:21]} gxf6 {[%emt 0:00:03]} 19. Ke2 {[%emt 0:01:06]} Rad8 {[%emt 0:00:26]} 20. Raf1 {[%emt 0:00:51]} Kg7 {[%emt 0:00:40]} 21. Rf5 {[%emt 0:00:43]} Bb4 {[%emt 0:05:15]} 22. d4 {[%emt 0:03:39]} Rfe8 {[%emt 0:06:23]} 23. Kd3 {[%emt 0:03:24] Strongly threatening g5.} Re5 {[%emt 0:05:39]} 24. Rhf1 {[%emt 0:00:07] Hoping for Rxe5.} Rxf5 {[%emt 0:00:13]} 25. Rxf5 $14 {[%emt 0:00:13][%mdl 4096] Endgame. KRB-KRB} c6 {[%emt 0:00:34] Inhibits Rb5.} 26. a4 {[%emt 0:03:08]} h6 {[%emt 0:02:49]} 27. Ke2 {[%emt 0:02:17]} Rd7 {[%emt 0:01:05]} 28. h4 {[%emt 0:00:25]} Re7 {[%emt 0:00:47]} 29. Bd3 {[%emt 0:00:24]} Bc3 {[%emt 0:04:10]} 30. Rf4 {[%emt 0:00:19]} Bb4 {[%emt 0:01:56]} 31. Rf5 {[%emt 0:00:09]} Bc3 $1 {[%emt 0:00:09]} 32. Rf4 {[%emt 0:00:04]} Bb4 {[%emt 0:00:03]} 33. Bf5 {[%emt 0:00:43]} Bd6 {[%emt 0:03:50]} 34. Rf3 {[%emt 0:00:48]} Re8 {[%emt 0:02:03]} 35. Kd3 {[%emt 0:00:22]} a5 {[%emt 0:04:38]} 36. Kc4 {[%emt 0:00:29]} Bb4 {[%emt 0:00:48]} 37. e4 {[%emt 0:00:40]} (37. Bc2 $14) 37... Re7 {[%emt 0:00:23]} 38. Rd3 {[%emt 0:01:20]} Rc7 {[%emt 0:00:21]} 39. Rd1 {[%emt 0:00:48]} Bd6 {[%emt 0:00:49]} 40. Rg1 {[%emt 0:01:10]} Be7 {[%emt 0:05:01]} 41. Rg2 {[%emt 0:32:07]} Kf8 {[%emt 0:31:09]} 42. Re2 {[%emt 0:00:00]} Kg7 {[%emt 0:00:00]} 43. h5 {[%emt 0:00:00]} Bb4 {[%emt 0:00:00]} 44. e5 {[%emt 0:00:00]} Re7 {[%emt 0:00:00] The position is equal.} 45. Bc8 {[%emt 0:00:00]} Kf8 {[%emt 0:00:00]} 46. Re4 {[%emt 0:00:00]} b6 {[%emt 0:00:00]} 47. Bf5 {[%emt 0:00:00]} fxe5 {[%emt 0:00:00]} 48. dxe5 {[%emt 0:00:00]} Kg7 {[%emt 0:00:00]} 49. Re2 {[%emt 0:00:00]} Bc5 {[%emt 0:00:00]} 50. Kd3 {[%emt 0:00:35]} Re8 {[%emt 0:00:00]} 51. Kc4 {[%emt 0:01:46]} Re7 {[%emt 0:00:00]} 52. Kc3 {[%emt 0:00:53]} Bb4+ {[%emt 0:00:13]} 53. Kd4 {[%emt 0:00:11]} Bc5+ {[%emt 0:00:50]} 54. Kc4 {[%emt 0:00:07]} Bb4 {[%emt 0:00:29]} 55. Kd3 {[%emt 0:04:42]} Bc5 {[%emt 0:00:15]} 56. Ke4 {[%emt 0:00:30]} Bd6 {[%emt 0:00:12]} 57. Kd4 {[%emt 0:01:35]} Bc5+ {[%emt 0:00:05]} 58. Ke4 {[%emt 0:00:16] Weighted Error Value: White=0.10 (very precise) /Black=0.09 (flawless) .  Mistake:       	White=2     	Black=2      Inaccurate:     	White=1     	Black=1      OK:         	White=12    	Black=25     Best:        	White=1     	Black=2      Strong:       	---       	Black=1} 1/2-1/2

[Event "French Top 16-A 2024"]
[Site "Chartres"]
[Date "2024.06.02"]
[Round "4.8"]
[White "Grigorian, Roudolph"]
[Black "Fischer, Julie"]
[Result "1-0"]
[ECO "B13"]
[WhiteElo "2116"]
[BlackElo "2092"]
[Annotator "NA RC"]
[PlyCount "73"]
[EventDate "2024.06.01"]
[EventType "team-tourn"]
[EventCountry "FRA"]
[SourceTitle "playchess.com"]
[Source "ChessBase"]
[SourceQuality "1"]
[TimeControl "40/5400+30:1800+30"]

1. e4 {[%emt 0:00:04]} c6 {[%emt 0:00:05]} 2. d4 {[%emt 0:06:10]} d5 {[%emt 0:00:13]} 3. exd5 {[%emt 0:00:39]} cxd5 {[%emt 0:00:12]} 4. Bd3 {[%emt 0:00:07]} Nc6 {[%emt 0:00:35]} 5. c3 {[%emt 0:00:06]} Nf6 {[%emt 0:02:16]} 6. Bf4 {[%emt 0:00:05]} Bg4 {[%emt 0:02:16]} 7. Qb3 {[%emt 0:00:25]} Qd7 {[%emt 0:00:40]} 8. Nd2 {[%emt 0:00:07]} e6 {[%emt 0:03:25]} 9. Ngf3 {[%emt 0:00:06]} Bxf3 {[%emt 0:02:00]} 10. Nxf3 {[%emt 0:00:09]} a6 {[%emt 0:01:06]} 11. O-O {[%emt 0:00:56]} Be7 {[%emt 0:04:36]} 12. h3 {[%emt 0:00:18]} O-O {[%emt 0:06:27]} 13. Rfe1 {[%emt 0:01:25]} b5 {[%emt 0:04:13]} 14. Ne5 {[%emt 0:01:57]} Nxe5 {[%emt 0:04:32]} 15. dxe5 {[%emt 0:02:05]} Nh5 {[%emt 0:02:13]} 16. Be3 {[%emt 0:01:02]} f5 {[%emt 0:00:16]} 17. exf6 {[%emt 0:00:15]} Nxf6 {[%emt 0:06:24]} 18. Bd4 {[%emt 0:00:09]} Bd6 {[%emt 0:05:01]} 19. a4 {[%emt 0:08:31]} bxa4 {[%emt 0:11:34]} 20. Qxa4 {[%emt 0:00:20]} Qe7 {[%emt 0:06:01]} 21. Bf5 {[%emt 0:09:53]} e5 {[%emt 0:02:08]} 22. Qc6 {[%emt 0:00:09]} g6 {[%emt 0:04:45]} 23. Bxe5 {[%emt 0:08:07]} Bxe5 {[%emt 0:02:11]} 24. Be6+ {[%emt 0:00:06]} Kh8 {[%emt 0:04:28]} 25. Rxe5 {[%emt 0:00:05]} Rad8 {[%emt 0:00:53]} 26. Rxa6 {[%emt 0:08:24]} Nd7 {[%emt 0:09:22]} 27. Qc7 {[%emt 0:07:17]} Qh4 {[%emt 0:12:17]} 28. Re2 {[%emt 0:00:20]} Nf6 {[%emt 0:00:21]} 29. Ra7 {[%emt 0:01:41]} Qh6 {[%emt 0:00:19]} 30. Re3 {[%emt 0:05:18]} d4 {[%emt 0:00:57]} 31. cxd4 {[%emt 0:00:49]} Rxd4 {[%emt 0:01:18]} 32. Qe5 {[%emt 0:00:44]} Qf4 {[%emt 0:01:38]} 33. Qxf4 {[%emt 0:01:14]} Rxf4 {[%emt 0:00:02]} 34. g3 {[%emt 0:00:49]} Rb4 {[%emt 0:01:38]} 35. b3 {[%emt 0:00:08]} Ne4 {[%emt 0:00:23]} 36. Bc4 {[%emt 0:02:46]} Re8 {[%emt 0:01:11]} 37. f3 {[%emt 0:00:25]} 1-0

[Event "French Top 16-A 2024"]
[Site "Chartres"]
[Date "2024.06.02"]
[Round "4.9"]
[White "Grigoryan, Karen H."]
[Black "Santos Latasa, Jaime"]
[Result "1/2-1/2"]
[ECO "E36"]
[WhiteElo "2583"]
[BlackElo "2626"]
[Annotator "TA"]
[PlyCount "144"]
[EventDate "2024.06.01"]
[EventType "team-tourn"]
[EventCountry "FRA"]
[SourceTitle "playchess.com"]
[Source "ChessBase"]
[SourceQuality "1"]
[TimeControl "40/5400+30:1800+30"]

{[%evp 74,144,198,183,181,177,172,176,181,178,172,177,212,213,214,235,206,179,282,256,174,249,345,357,311,295,370,368,373,373,397,388,487,469,458,414,539,589,589,8,8,8,8,8,8,8,8,0,0,0,0,0,0,0,0,0,0,0,0,0,0,0,0,0,0,0,0,0,0,0,0,0,11]} 1. d4 {[%emt 0:00:07]} Nf6 {[%emt 0:00:06]} 2. c4 {[%emt 0:00:10]} e6 {[%emt 0:00:06]} 3. Nc3 {[%emt 0:00:04]} Bb4 {[%emt 0:00:11]} 4. Qc2 {[%emt 0:00:19]} d5 {[%emt 0:00:24]} 5. a3 {[%emt 0:00:54]} Bxc3+ {[%emt 0:00:06]} 6. Qxc3 {[%emt 0:00:03]} O-O {[%emt 0:00:12]} 7. Nf3 {[%emt 0:00:45]} b6 {[%emt 0:01:00] E36: Nimzo-Indian: Classical: 4...d5 5 a3.} 8. Bg5 {[%emt 0:00:56]} dxc4 {[%emt 0:00:46]} 9. Qxc4 {[%emt 0:00:45]} Ba6 {[%emt 0:00:10]} 10. Qc2 {[%emt 0:07:52]} h6 {[%emt 0:06:20]} 11. Bh4 {[%emt 0:12:31]} Nbd7 {[%emt 0:01:33]} 12. e4 {[%emt 0:03:45]} Qc8 {[%emt 0:01:56]} 13. O-O-O {[%emt 0:04:03]} Bb7 $146 {[%emt 0:05:10]} ({Predecessor:} 13... Bxf1 14. Rhxf1 Qb7 15. Rfe1 Rac8 16. Kb1 Rfe8 17. Qe2 c5 18. dxc5 Rxc5 19. Nd4 b5 {½-½ Maiorov,N (2525)-Arribas Lopez,A (2379) San Sebastian op 32nd 2009 (6)}) 14. e5 {[%emt 0:08:40]} Nd5 {[%emt 0:00:38]} 15. Kb1 {[%emt 0:00:45]} c5 {[%emt 0:00:27]} 16. Rc1 {[%emt 0:00:05]} cxd4 {[%emt 0:11:53]} 17. Qd2 {[%emt 0:02:33]} Nc5 {[%emt 0:05:51]} 18. Nxd4 {[%emt 0:03:41]} Ba6 {[%emt 0:04:11]} 19. f4 {[%emt 0:05:04]} Bxf1 {[%emt 0:02:36]} 20. Rhxf1 {[%emt 0:00:13]} Qa6 {[%emt 0:00:30]} 21. Rf3 {[%emt 0:01:54]} Rac8 {[%emt 0:08:54]} 22. Re1 {[%emt 0:01:18]} Qa5 {[%emt 0:13:33]} 23. Qxa5 {[%emt 0:07:40]} bxa5 {[%emt 0:00:11]} 24. f5 {[%emt 0:00:20]} Rc7 {[%emt 0:03:12]} 25. Nb5 {[%emt 0:11:30]} Rb7 {[%emt 0:03:10]} 26. Nd6 {[%emt 0:00:23]} Rb3 {[%emt 0:01:28]} 27. Rxb3 {[%emt 0:00:29]} Nxb3 {[%emt 0:00:15]} 28. Bf2 {[%emt 0:01:36]} exf5 {[%emt 0:03:53]} 29. Nxf5 {[%emt 0:01:37]} Nd2+ {[%emt 0:03:26]} 30. Ka1 {[%emt 0:01:11]} Nc4 {[%emt 0:00:31]} 31. Bxa7 {[%emt 0:01:53]} Re8 {[%emt 0:01:32]} 32. Bd4 {[%emt 0:06:27]} a4 {[%emt 0:02:43]} 33. Ka2 {[%emt 0:02:38]} Nd2 {[%emt 0:02:26]} 34. Rc1 {[%emt 0:02:47]} Nb3 {[%emt 0:03:25]} 35. Rc4 {[%emt 0:00:18]} Nxd4 {[%emt 0:01:09]} 36. Nxd4 {[%emt 0:02:16]} Rxe5 {[%emt 0:02:37]} 37. Rxa4 {[%emt 0:00:08]} Re4 {[%emt 0:00:22]} 38. Ra8+ {[%emt 0:02:52]} Kh7 {[%emt 0:00:11]} 39. Nf3 $1 {[%emt 0:01:12]} Re2 {[%emt 0:00:18]} 40. Rd8 {[%emt 0:01:44]} Nc3+ {[%emt 0:01:21]} 41. Kb3 {[%emt 0:30:12]} Ne4 {[%emt 0:30:09]} 42. a4 {[%emt 0:06:30]} Rxg2 {[%emt 0:01:52]} 43. a5 {[%emt 0:00:50]} Rf2 {[%emt 0:02:17]} 44. Nd4 {[%emt 0:00:00]} Rxh2 {[%emt 0:00:00]} 45. Rd5 {[%emt 0:00:00]} Rh1 {[%emt 0:00:00]} (45... Nf6 {was worth a try.} 46. Rd8 Ne4) 46. Ka2 {[%emt 0:00:00]} Rc1 {[%emt 0:00:00]} 47. a6 {[%emt 0:00:00]} Rc8 {[%emt 0:00:00]} 48. a7 {[%emt 0:00:00]} Ra8 {[%emt 0:00:00] [#]} 49. Nc6 $1 {[%emt 0:00:00]} g5 {[%emt 0:00:00]} 50. Rd8 {[%emt 0:00:00]} Rxa7+ {[%emt 0:00:00]} 51. Nxa7 {[%emt 0:00:00]} h5 {[%emt 0:00:00]} 52. Nc6 {[%emt 0:00:00]} h4 {[%emt 0:00:00]} 53. Rd7 {[%emt 0:00:00]} Kg6 {[%emt 0:00:00] [#]} 54. Ne5+ $1 {[%emt 0:00:00]} Kf5 {[%emt 0:00:00]} 55. Nxf7 {[%emt 0:00:00]} h3 {[%emt 0:00:00]} 56. Nd6+ $2 {[%emt 0:02:59]} (56. Nh6+ $18 Kg6 57. Ng4) 56... Ke6 $11 {[%emt 0:00:00]} 57. Nxe4 {[%emt 0:00:55]} ({Don't play} 57. Rh7 Kxd6 58. Rxh3 Ke5 $11) 57... Kxd7 {[%emt 0:00:00]} 58. b4 {[%emt 0:00:21]} h2 {[%emt 0:00:00]} 59. Ng3 {[%emt 0:00:12]} Kd6 {[%emt 0:00:00]} 60. Kb3 {[%emt 0:00:21]} (60. Kb2 $5 g4 $8 61. Nh1 $11) 60... Ke5 {[%emt 0:00:00]} 61. b5 {[%emt 0:00:46]} Kf4 {[%emt 0:00:00]} 62. Nh1 {[%emt 0:00:05]} Kf3 {[%emt 0:00:00]} 63. b6 {[%emt 0:00:06]} Kg2 {[%emt 0:00:00]} 64. b7 {[%emt 0:00:07]} Kxh1 {[%emt 0:00:00]} 65. b8=Q {[%emt 0:00:04]} (65. b8=R $2 {too greedy.} Kg2 66. Rg8 h1=Q $19 (66... h1=R 67. Rxg5+ Kf3 68. Rg6 $11)) 65... g4 $1 {[%emt 0:00:00]} 66. Kc3 {[%emt 0:03:42]} Kg2 {[%emt 0:01:19]} 67. Qb7+ {[%emt 0:00:37]} Kg1 {[%emt 0:00:05]} 68. Qb1+ {[%emt 0:00:23]} Kg2 {[%emt 0:00:06]} 69. Qe4+ {[%emt 0:00:09]} Kg1 $1 {[%emt 0:00:05]} 70. Qxg4+ {[%emt 0:00:59]} Kh1 {[%emt 0:00:55]} 71. Qf3+ {[%emt 0:00:59]} Kg1 {[%emt 0:00:05]} 72. Qg3+ {[%emt 0:00:11]} Kh1 {[%emt 0:00:06]} 1/2-1/2

[Event "French Top 16-A 2024"]
[Site "Chartres"]
[Date "2024.06.02"]
[Round "4.9"]
[White "Alonso Rosell, Alvar"]
[Black "Van Wely, Loek"]
[Result "*"]
[ECO "E20"]
[WhiteElo "2556"]
[BlackElo "2608"]
[Annotator "RC"]
[PlyCount "21"]
[EventDate "2024.06.01"]
[EventType "team-tourn"]
[EventCountry "FRA"]
[SourceTitle "playchess.com"]
[Source "ChessBase"]
[SourceQuality "1"]
[TimeControl "40/5400+30:1800+30"]

1. d4 {[%emt 0:00:04]} Nf6 {[%emt 0:00:08]} 2. c4 {[%emt 0:00:05]} e6 {[%emt 0:00:06]} 3. Nc3 {[%emt 0:00:06]} Bb4 {[%emt 0:00:08]} 4. f3 {[%emt 0:00:04]} c5 {[%emt 0:01:36]} 5. d5 {[%emt 1:32:41]} b5 {[%emt 0:00:32]} 6. e4 {[%emt 0:00:05]} d6 {[%emt 1:31:00]} 7. Bd2 {[%emt 0:00:05]} a6 {[%emt 0:04:23]} 8. a4 {[%emt 0:00:21]} Ba5 {[%emt 0:12:05]} 9. dxe6 {[%emt 0:05:45]} Bxe6 {[%emt 0:02:55]} 10. axb5 {[%emt 0:04:50]} axb5 {[%emt 0:06:14]} 11. cxb5 {[%emt 0:00:40]} *

[Event "French Top 16-A 2024"]
[Site "Chartres"]
[Date "2024.06.02"]
[Round "4.9"]
[White "Barbot, Pierre"]
[Black "Guichard, Pauline"]
[Result "1-0"]
[ECO "E20"]
[WhiteElo "2425"]
[BlackElo "2362"]
[Annotator "RC"]
[PlyCount "45"]
[EventDate "2024.06.01"]
[EventType "team-tourn"]
[EventCountry "FRA"]
[SourceTitle "playchess.com"]
[Source "ChessBase"]
[SourceQuality "1"]
[TimeControl "40/5400+30:1800+30"]

1. d4 {[%emt 0:00:04]} Nf6 {[%emt 0:00:08]} 2. c4 {[%emt 0:00:05]} e6 {[%emt 0:00:06]} 3. Nc3 {[%emt 0:00:06]} Bb4 {[%emt 0:00:08]} 4. f3 {[%emt 0:00:04]} c5 {[%emt 0:01:36]} 5. d5 {[%emt 0:00:31]} b5 {[%emt 0:00:32]} 6. e4 {[%emt 0:00:05]} d6 {[%emt 0:00:21]} 7. Bd2 {[%emt 0:00:05]} a6 {[%emt 0:04:23]} 8. a4 {[%emt 0:00:21]} Ba5 {[%emt 0:12:05]} 9. dxe6 {[%emt 0:05:45]} Bxe6 {[%emt 0:02:55]} 10. axb5 {[%emt 0:04:50]} axb5 {[%emt 0:06:14]} 11. cxb5 {[%emt 0:00:40]} Nbd7 {[%emt 0:12:07]} 12. Nge2 {[%emt 0:03:15]} d5 {[%emt 0:10:34]} 13. exd5 {[%emt 0:23:29]} Bxd5 {[%emt 0:02:37]} 14. Rxa5 {[%emt 0:07:06]} Rxa5 {[%emt 0:00:23]} 15. Nxd5 {[%emt 0:00:06]} Nxd5 {[%emt 0:01:08]} 16. Bxa5 {[%emt 0:00:05]} Qxa5+ {[%emt 0:00:04]} 17. Qd2 {[%emt 0:00:57]} Qa1+ {[%emt 0:06:40]} 18. Kf2 {[%emt 0:01:20]} N7f6 {[%emt 0:01:54]} 19. Ng3 {[%emt 0:05:39]} O-O {[%emt 0:04:10]} 20. Bc4 {[%emt 0:00:58]} Qa8 {[%emt 0:00:04]} 21. Nf5 {[%emt 0:01:13]} Kh8 {[%emt 0:13:06]} 22. Rd1 {[%emt 0:02:20]} Nc7 {[%emt 0:00:24]} 23. Nxg7 {[%emt 0:08:55]} 1-0